bitfinex/quotes_SOLUSD_20260201
["timestamp","ask_amount","ask_price","bid_price","bid_amount"]
[1769904947159,3.12165925,106.23,106.17,9.41879351]
[1769904947357,3.12165925,106.23,106.17,12.59236451]
[1769904948440,9.41442289,106.22,106.17,12.59236451]
[1769904948643,3.12165925,106.21,106.17,12.59236451]
[1769904949659,3.12165925,106.2,106.16,9.41974378]
[1769904949847,3.12165925,106.2,106.14,23.55219745]
[1769904949848,3.12165925,106.2,106.14,9.42092313]
[1769904950043,3.12165925,106.2,106.12,105.17485485]
[1769904950260,3.12165925,106.2,106.12,102.00128385]
[1769904950467,3.12165925,106.2,106.13,9.42235222]
[1769904951666,3.12165925,106.18,106.12,102.00139396]
[1769904953264,3.12165925,106.17,106.12,105.17496496]
[1769904955068,3.12165925,106.18,106.13,3.173571]
[1769904955265,3.12165925,106.2,106.13,3.173571]
[1769904955469,12.53430985,106.24,106.14,3.173571]
[1769904955765,12.53430985,106.24,106.13,26.16]
[1769904955766,3.12165925,106.23,106.17,3.173571]
[1769904955975,9.4126506,106.24,106.18,3.173571]
[1769904956143,9.41211383,106.25,106.18,3.173571]
[1769904956465,1e-08,106.26,106.21,3.173571]
[1769904956651,1e-08,106.26,106.23,3.173571]
[1769904956851,1e-08,106.26,106.25,3.173571]
[1769904957648,12.52906753,106.3,106.25,3.173571]
[1769904957649,3.12165925,106.3,106.25,3.173571]
[1769904958142,12.52825232,106.31,106.25,3.173571]
[1769904958346,3.22165925,106.28,106.23,9.41327905]
[1769904958575,3.22165925,106.28,106.24,3.173571]
[1769904958770,0.1,106.28,106.25,12.5853357]
[1769904959067,3.22165925,106.28,106.24,9.41238458]
[1769904959262,3.22165925,106.28,106.22,36.12243702]
[1769904959461,3.22165925,106.28,106.23,9.41326246]
[1769904960168,3.22165925,106.28,106.21,9.41458575]
[1769904960671,3.22165925,106.28,106.22,9.41432953]
[1769904960870,3.12165925,106.27,106.21,9.41504029]
[1769904961166,0.1,106.33,106.22,3.173571]
[1769904961371,9.50498663,106.33,106.26,3.173571]
[1769904961562,12.62664588,106.33,106.26,2.91182697]
[1769904962376,3.12165925,106.32,106.26,2.91182697]
[1769904962874,3.12165925,106.32,106.27,9.40999341]
[1769904963088,3.12165925,106.32,106.27,32.93497694]
[1769904963580,3.22165925,106.33,106.28,3.173571]
[1769904963777,0.1,106.33,106.28,3.173571]
[1769904965079,0.1,106.33,106.3,3.173571]
[1769904965774,3.22165925,106.33,106.28,12.58250697]
[1769904966465,3.22165925,106.33,106.28,3.173571]
[1769904966662,3.22165925,106.33,106.26,12.58417341]
[1769904966972,3.12165925,106.31,106.26,3.173571]
[1769904967374,0.1,106.33,106.27,3.09387615]
[1769904967780,9.40262161,106.36,106.26,37.21327989]
[1769904967962,3.2120985,106.37,106.26,37.21327989]
[1769904967963,9.4013233,106.37,106.27,3.09387615]
[1769904968170,9.10846273,106.39,106.3,3.09387615]
[1769904968354,18.50802032,106.39,106.31,3.09387615]
[1769904968960,12.61310094,106.38,106.33,3.09387615]
[1769904969477,3.2120985,106.38,106.33,3.09387615]
[1769904970679,12.6124658,106.38,106.33,3.09387615]
[1769904971179,3.2120985,106.4,106.35,3.09387615]
[1769904971395,12.61079865,106.4,106.35,3.09387615]
[1769904972486,3.2120985,106.39,106.35,3.09387615]
[1769904972988,9.39870015,106.4,106.35,3.09387615]
[1769904972989,3.2120985,106.4,106.35,3.09387615]
[1769904973281,3.2120985,106.4,106.35,12.49638678]
[1769904974161,26.70530891,106.42,106.36,3.09387615]
[1769904974576,3.2120985,106.41,106.36,3.09387615]
[1769904974882,3.2120985,106.41,106.35,9.40251063]
[1769904974883,4.90929179,106.46,106.38,4.27527085]
[1769904975070,8.12139029,106.46,106.39,3.09387615]
[1769904975268,8.12139029,106.46,106.41,3.09387615]
[1769904975581,2.7120985,106.46,106.42,3.09387615]
[1769904975786,12.10545142,106.46,106.42,3.09387615]
[1769904976084,9.39335292,106.46,106.4,12.49237239]
[1769904976787,9.39258227,106.47,106.4,35.98861299]
[1769904976968,3.2120985,106.46,106.37,73.40524508]
[1769904977482,12.60560746,106.46,106.37,73.40524508]
[1769904977788,3.2120985,106.45,106.37,73.40524508]
[1769904977966,3.2120985,106.47,106.38,79.90223724]
[1769904978776,9.71921878,106.48,106.38,79.90223724]
[1769904978973,12.93131728,106.48,106.39,3.09387615]
[1769904979372,3.2120985,106.47,106.41,3.09387615]
[1769904980071,1e-08,106.48,106.42,3.09387615]
[1769904980287,1e-08,106.48,106.44,3.09387615]
[1769904980802,3.21209851,106.48,106.41,3.09387615]
[1769904980965,3.2120985,106.47,106.4,9.39849624]
[1769904981287,3.2120985,106.45,106.4,12.49237239]
[1769904981475,3.2120985,106.45,106.36,26.59825875]
[1769904981679,3.2120985,106.45,106.38,9.39969933]
[1769904982289,1e-08,106.48,106.41,3.09387615]
[1769904983402,3.2120985,106.47,106.41,12.49134112]
[1769904983775,3.2120985,106.45,106.37,3.09387615]
[1769904983975,3.2120985,106.45,106.38,9.39996571]
[1769904984179,3.2120985,106.45,106.35,3.09387615]
[1769904984692,3.2120985,106.45,106.4,9.397752]
[1769904984870,3.2120985,106.45,106.41,9.39722073]
[1769904985504,12.60621112,106.45,106.4,12.49207037]
[1769904985803,3.2120985,106.44,106.4,3.09387615]
[1769904986267,3.2120985,106.44,106.39,9.39926668]
[1769904986469,3.2120985,106.44,106.36,3.09387615]
[1769904986667,3.2120985,106.44,106.38,9.40010833]
[1769904987380,3.2120985,106.43,106.38,9.40010833]
[1769904989793,3.2120985,106.43,106.38,12.49398448]
[1769904989996,9.39444935,106.45,106.39,3.09387615]
[1769904990292,3.2120985,106.44,106.39,3.09387615]
[1769904991394,3.2120985,106.44,106.38,12.49398448]
[1769904991686,3.2120985,106.42,106.36,9.40153198]
[1769904992975,9.39584703,106.43,106.37,3.09387615]
[1769904993494,3.2120985,106.43,106.37,3.09387615]
[1769904993795,12.60529782,106.46,106.39,3.09387615]
[1769904994099,3.2120985,106.45,106.39,3.09387615]
[1769904994292,3.2120985,106.45,106.37,12.49466612]
[1769904995295,3.2120985,106.43,106.36,9.40170661]
[1769904995474,3.2120985,106.43,106.35,3.09387615]
[1769904995475,3.2120985,106.43,106.37,12.49499724]
[1769904996595,12.60882843,106.42,106.37,12.49499724]
[1769904997901,3.11571695,106.43,106.38,2.98765596]
[1769904998693,3.11571695,106.42,106.37,32.90398843]
[1769904998903,3.11571695,106.42,106.37,9.40112109]
[1769904999507,3.11571695,106.42,106.32,12.39282801]
[1769904999805,3.11571695,106.4,106.32,12.39282801]
[1769905000306,3.11571695,106.4,106.33,2.98765596]
[1769905001000,3.11571695,106.4,106.32,9.40540501]
[1769905001498,3.11571695,106.4,106.32,12.39306097]
[1769905001999,3.18912008,106.38,106.32,32.91932525]
[1769905002194,3.18912008,106.38,106.33,3.22906572]
[1769905002909,3.18912008,106.38,106.32,9.40540501]
[1769905003807,3.18912008,106.38,106.32,12.63447073]
[1769905004004,3.18912008,106.37,106.32,12.63447073]
[1769905005403,12.59036254,106.37,106.32,12.63447073]
[1769905005586,3.18912008,106.36,106.31,12.63491184]
[1769905005787,3.18912008,106.36,106.3,9.40699852]
[1769905006287,3.18912008,106.36,106.29,9.40756836]
[1769905006588,3.18912008,106.36,106.28,9.40875528]
[1769905006789,3.18912008,106.36,106.27,0.2]
[1769905006790,4.27527085,106.36,106.27,0.2]
[1769905006990,3.18912008,106.35,106.27,0.2]
[1769905007392,3.18912008,106.35,106.28,3.22906572]
[1769905007590,3.18912008,106.34,106.28,3.22906572]
[1769905008304,3.18912008,106.36,106.28,3.22906572]
[1769905008493,3.18912008,106.38,106.28,3.22906572]
[1769905009511,3.18912008,106.36,106.3,3.22906572]
[1769905010494,3.18912008,106.36,106.31,3.22906572]
[1769905010704,3.18912008,106.36,106.29,9.40822278]
[1769905011014,3.18912008,106.36,106.27,9.60949052]
[1769905011311,3.18912008,106.36,106.28,9.40900683]
[1769905011508,3.18912008,106.36,106.29,3.22906572]
[1769905011889,12.59124591,106.36,106.29,3.22906572]
[1769905012513,3.18912008,106.35,106.29,3.22906572]
[1769905013194,3.18912008,106.35,106.3,12.63640344]
[1769905013515,3.18912008,106.34,106.3,9.40733772]
[1769905013701,3.18912008,106.33,106.27,3.42906572]
[1769905013903,3.18912008,106.32,106.27,3.42906572]
[1769905014113,9.438,106.33,106.29,12.63719353]
[1769905014718,9.438,106.33,106.28,3.22906572]
[1769905014890,9.438,106.34,106.28,3.22906572]
[1769905015315,18.84268353,106.33,106.27,0.2]
[1769905015521,42.35439236,106.33,106.27,0.2]
[1769905015721,18.84268353,106.33,106.27,3.42906572]
[1769905015927,18.84268353,106.33,106.28,9.4090173]
[1769905016217,9.438,106.32,106.28,12.63808302]
[1769905016428,9.438,106.32,106.29,3.22906572]
[1769905016796,9.438,106.35,106.29,3.22906572]
[1769905017409,12.59170057,106.36,106.3,12.63640344]
[1769905017596,3.18912008,106.35,106.3,12.63640344]
[1769905018821,3.18912008,106.35,106.29,9.40784801]
[1769905019401,12.59291921,106.34,106.29,3.22906572]
[1769905020004,3.18912008,106.33,106.29,3.22906572]
[1769905020713,3.18912008,106.33,106.28,9.40910801]
[1769905021616,3.18912008,106.31,106.27,12.83866855]
[1769905021823,3.18912008,106.31,106.27,0.2]
[1769905022316,3.18912008,106.31,106.24,3.22906572]
[1769905022508,3.18912008,106.31,106.22,26.76390913]
[1769905022708,3.18912008,106.31,106.23,3.22906572]
[1769905022909,3.18912008,106.31,106.22,12.6430858]
[1769905023418,3.18912008,106.3,106.22,12.6430858]
[1769905023621,9.438,106.31,106.22,12.6430858]
[1769905023622,3.18912008,106.28,106.22,12.6430858]
[1769905023927,3.18912008,106.28,106.22,3.22906572]
[1769905024709,3.18912008,106.28,106.22,12.64336038]
[1769905025134,3.18912008,106.28,106.18,23.74461542]
[1769905025422,3.18912008,106.25,106.18,0.2]
[1769905025612,3.18912008,106.23,106.18,9.61786796]
[1769905025810,3.18912008,106.23,106.18,0.2]
[1769905027523,3.1323251,106.21,106.15,3.08467429]
[1769905027924,36.08280522,106.22,106.15,3.08467429]
[1769905028323,12.54674799,106.22,106.15,3.08467429]
[1769905028835,3.1323251,106.22,106.15,3.08467429]
[1769905029726,3.1323251,106.27,106.18,3.08467429]
[1769905031727,32.93807641,106.26,106.19,9.41708258]
[1769905032031,3.1323251,106.25,106.19,12.50175687]
[1769905032431,3.1323251,106.25,106.2,3.08467429]
[1769905032634,12.54320407,106.26,106.2,3.08467429]
[1769905032933,3.1323251,106.25,106.2,3.08467429]
[1769905033631,3.1323251,106.25,106.18,12.50249812]
[1769905033830,9.4126506,106.24,106.18,12.50259398]
[1769905034014,3.1323251,106.23,106.18,12.50259398]
[1769905035226,12.54637859,106.23,106.18,12.50259398]
[1769905035533,3.1323251,106.22,106.18,12.50259398]
[1769905036442,12.54507949,106.24,106.19,3.08467429]
[1769905037236,3.1323251,106.3,106.21,3.08467429]
[1769905038243,3.1323251,106.28,106.22,12.49909718]
[1769905038942,3.1323251,106.28,106.22,32.95048012]
[1769905039142,3.1323251,106.28,106.22,36.03515441]
[1769905039439,9.40822278,106.29,106.23,3.08467429]
[1769905039741,21.97801065,106.3,106.23,3.08467429]
[1769905039928,12.5703251,106.3,106.23,3.08467429]
[1769905040124,9.40679166,106.31,106.23,3.08467429]
[1769905040329,9.40679166,106.31,106.22,80.02259459]
[1769905040330,12.53911676,106.31,106.25,3.08467429]
[1769905040639,3.1323251,106.3,106.25,3.08467429]
[1769905041341,3.1323251,106.3,106.24,9.4126506]
[1769905041524,3.1323251,106.3,106.24,12.49732489]
[1769905042147,3.1323251,106.3,106.25,3.08467429]
[1769905042336,3.1323251,106.3,106.26,9.41087897]
[1769905042633,3.1323251,106.3,106.26,12.49555326]
[1769905043525,3.1323251,106.32,106.26,12.49555326]
[1769905043719,3.1323251,106.32,106.27,3.08467429]
[1769905044635,3.1323251,106.32,106.26,9.41087897]
[1769905044834,3.1323251,106.32,106.25,12.4961194]
[1769905045126,3.1323251,106.32,106.27,3.08467429]
[1769905046036,3.1323251,106.31,106.27,12.49457716]
[1769905046931,3.1323251,106.3,106.25,3.08467429]
[1769905047130,3.1323251,106.3,106.23,3.08467429]
[1769905048147,3.1323251,106.3,106.22,32.95048012]
[1769905048148,3.1323251,106.29,106.21,12.49966852]
[1769905048346,3.1323251,106.29,106.21,3.08467429]
[1769905048556,3.1323251,106.29,106.21,12.49991337]
[1769905048850,3.1323251,106.29,106.22,3.08467429]
[1769905049062,3.1323251,106.28,106.23,12.49821095]
[1769905049554,3.1323251,106.28,106.24,3.08467429]
[1769905050129,9.40645282,106.31,106.24,3.08467429]
[1769905050349,3.1323251,106.32,106.24,3.08467429]
[1769905050350,3.1323251,106.36,106.24,3.08467429]
[1769905050552,3.1323251,106.36,106.25,3.08467429]
[1769905050553,3.1323251,106.35,106.25,3.08467429]
[1769905050925,3.1323251,106.35,106.27,3.08467429]
[1769905051736,36.0427201,106.35,106.27,3.08467429]
[1769905051933,3.1323251,106.34,106.27,3.08467429]
[1769905052540,3.1323251,106.32,106.27,3.08467429]
[1769905052937,12.53825101,106.32,106.27,12.49420143]
[1769905053534,3.1323251,106.31,106.27,3.08467429]
[1769905054141,3.1323251,106.31,106.25,12.49617807]
[1769905054956,12.53966282,106.3,106.25,12.49617807]
[1769905055859,12.53966282,106.3,106.26,3.08467429]
[1769905057440,2.8941195,106.34,106.27,3.03680026]
[1769905057731,9.438,106.35,106.27,3.03680026]
[1769905057732,9.4029149,106.35,106.27,3.03680026]
[1769905057960,12.2970344,106.35,106.27,3.03680026]
[1769905058346,2.8941195,106.34,106.27,3.03680026]
[1769905058756,12.29840571,106.34,106.29,3.03680026]
[1769905059455,2.8941195,106.33,106.29,3.03680026]
[1769905059854,9.40428621,106.34,106.29,3.03680026]
[1769905060054,12.29840571,106.34,106.29,3.03680026]
[1769905060759,2.8941195,106.33,106.25,49.66786447]
[1769905060961,2.8941195,106.33,106.26,12.44728879]
[1769905061864,2.8941195,106.33,106.24,3.05818781]
[1769905062069,2.8941195,106.33,106.24,12.47049515]
[1769905062262,2.97233105,106.32,106.24,3.05818781]
[1769905062450,2.97233105,106.31,106.22,12.47205595]
[1769905062775,2.97233105,106.29,106.23,12.47170814]
[1769905063838,9.40910801,106.28,106.23,12.47170814]
[1769905064043,12.38143906,106.28,106.23,12.47170814]
[1769905066758,2.97233105,106.28,106.23,12.47170814]
[1769905066961,2.97233105,106.28,106.23,36.0055498]
[1769905067574,2.97233105,106.27,106.23,12.47170814]
[1769905068952,12.38237017,106.27,106.23,12.47170814]
[1769905070066,2.97233105,106.27,106.23,3.05818781]
[1769905070262,12.38259115,106.27,106.23,3.05818781]
[1769905070661,12.38259115,106.27,106.23,12.47146284]
[1769905070857,2.97233105,106.27,106.23,12.47146284]
[1769905071560,12.38232689,106.27,106.23,12.47146284]
[1769905071771,2.97233105,106.26,106.21,3.05818781]
[1769905072284,2.97233105,106.23,106.17,3.05818781]
[1769905072458,2.97233105,106.21,106.17,12.47687717]
[1769905072653,2.97233105,106.21,106.17,3.05818781]
[1769905073058,2.97233105,106.21,106.17,12.47685582]
[1769905073258,9.41442289,106.22,106.17,12.47685582]
[1769905073568,2.97233105,106.23,106.18,3.05818781]
[1769905073766,2.97233105,106.23,106.17,36.02399719]
[1769905074071,2.97233105,106.23,106.17,12.47685582]
[1769905074478,2.97233105,106.21,106.17,3.05818781]
[1769905074654,2.97233105,106.21,106.17,12.47695562]
[1769905075376,12.38675394,106.22,106.17,12.47695562]
[1769905075673,2.97233105,106.22,106.18,3.05818781]
[1769905077252,12.38603363,106.23,106.19,9.41708258]
[1769905077857,12.38603363,106.23,106.18,12.47574887]
[1769905078458,12.38603363,106.23,106.19,3.05818781]
[1769905079879,12.38603363,106.23,106.19,12.47512682]
[1769905080278,2.97233105,106.22,106.18,12.47591575]
[1769905080483,2.97233105,106.22,106.18,9.41772794]
[1769905080684,9.41370258,106.23,106.19,3.05818781]
[1769905080869,21.82338246,106.24,106.19,12.47489044]
[1769905081070,2.97233105,106.23,106.19,12.47489044]
[1769905081461,2.97233105,106.23,106.18,12.47590747]
[1769905083063,215.42664675,106.27,106.15,26.60819052]
[1769905083064,2.97233105,106.21,106.15,26.60819052]
[1769905083464,2.97233105,106.21,106.15,12.47844525]
[1769905083680,2.97233105,106.17,106.12,105.05937248]
[1769905084972,2.97233105,106.17,106.13,3.05818781]
[1769905085164,12.41033105,106.18,106.14,3.05818781]
[1769905085778,2.97233105,106.17,106.13,9.42180742]
[1769905085972,2.97233105,106.17,106.13,12.47999523]
[1769905086176,2.97233105,106.17,106.12,102.00135473]
[1769905086884,2.97233105,106.15,106.1,3.05818781]
[1769905087082,12.39379478,106.15,106.1,12.48314957]
[1769905087266,2.88027374,106.14,106.1,12.48314957]
[1769905087467,2.88027374,106.14,106.1,3.05818781]
[1769905088186,2.88027374,106.14,106.08,12.44756238]
[1769905088390,2.88027374,106.14,106.07,3.22099476]
[1769905088683,2.88027374,106.14,106.1,3.02099476]
[1769905088877,2.88027374,106.14,106.1,12.44594205]
[1769905089077,12.30018373,106.16,106.11,12.44475212]
[1769905089386,2.88027374,106.15,106.09,12.44671337]
[1769905089687,2.88027374,106.15,106.09,3.02099476]
[1769905089890,2.88027374,106.15,106.07,12.64855034]
[1769905090394,2.88027374,106.15,106.07,12.64868954]
[1769905090891,2.88027374,106.12,106.07,0.2]
[1769905091286,2.88027374,106.1,106.07,0.2]
[1769905091587,2.88027374,106.1,106.07,12.64848395]
[1769905091786,2.88027374,106.1,106.07,3.22099476]
[1769905091971,12.30378149,106.12,106.07,3.22099476]
[1769905092166,2.88027374,106.11,106.07,3.22099476]
[1769905092474,2.88027374,106.11,106.07,12.64840126]
[1769905093270,2.88027374,106.1,106.07,0.2]
[1769905095071,7.15554459,106.13,106.07,3.22099476]
[1769905095272,2.88027374,106.12,106.08,3.02099476]
[1769905095775,2.88027374,106.12,106.07,3.22099476]
[1769905095966,2.88027374,106.12,106.07,12.64871761]
[1769905097272,12.30445619,106.11,106.07,12.64871761]
[1769905100878,2.88027374,106.1,106.07,0.2]
[1769905101074,2.88027374,106.11,106.08,3.02099476]
[1769905101287,7.79623267,106.13,106.08,3.02099476]
[1769905101688,2.88027374,106.13,106.08,3.02099476]
[1769905101887,2.88027374,106.17,106.08,3.02099476]
[1769905102087,2.88027374,106.17,106.09,3.02099476]
[1769905102088,4.91470335,106.15,106.09,3.02099476]
[1769905102489,2.88027374,106.17,106.09,3.02099476]
[1769905102901,2.88027374,106.16,106.11,3.02099476]
[1769905103395,12.29899352,106.18,106.11,3.02099476]
[1769905103781,12.29739152,106.19,106.11,3.02099476]
[1769905105083,12.29739152,106.19,106.1,106.29310084]
[1769905105084,4.91413599,106.2,106.13,3.02099476]
[1769905105483,56.49985457,106.25,106.13,3.02099476]
[1769905105484,2.88027374,106.23,106.13,3.02099476]
[1769905105689,2.88027374,106.23,106.15,3.02099476]
[1769905106896,12.29455586,106.23,106.17,3.02099476]
[1769905107100,2.88027374,106.22,106.17,3.02099476]
[1769905107496,12.29455586,106.23,106.17,3.02099476]
[1769905107694,16.56857223,106.24,106.17,3.02099476]
[1769905107997,2.88027374,106.23,106.17,3.02099476]
[1769905108802,2.88027374,106.24,106.19,3.02099476]
[1769905109006,2.88027374,106.27,106.19,3.02099476]
[1769905109196,12.29057206,106.27,106.19,3.02099476]
[1769905109397,2.88027374,106.27,106.19,3.02099476]
[1769905109906,12.29036227,106.27,106.19,3.02099476]
[1769905111107,12.29036227,106.27,106.21,3.02099476]
[1769905111504,12.29036227,106.27,106.2,3.02099476]
[1769905111505,2.88027374,106.26,106.2,3.02099476]
[1769905113107,2.88027374,106.24,106.2,12.43686504]
[1769905113312,2.88027374,106.24,106.15,4.27527085]
[1769905113313,2.88027374,106.24,106.18,12.43860695]
[1769905113692,2.88027374,106.24,106.2,3.02099476]
[1769905113893,2.88027374,106.24,106.19,9.4169818]
[1769905114201,2.88027374,106.24,106.2,12.43706397]
[1769905114718,2.88027374,106.25,106.21,3.02099476]
[1769905115109,2.88027374,106.24,106.19,3.02099476]
[1769905116214,2.88027374,106.24,106.18,3.02099476]
[1769905116513,2.88027374,106.24,106.17,3.02099476]
[1769905117215,2.80595931,106.22,106.17,12.43905041]
[1769905118408,2.80595931,106.22,106.17,35.98619178]
[1769905118612,2.80595931,106.24,106.18,2.95111549]
[1769905118810,126.22624449,106.27,106.18,2.95111549]
[1769905118811,2.80595931,106.26,106.18,2.95111549]
[1769905119292,23.52148934,106.29,106.2,2.95111549]
[1769905119293,18.84726087,106.28,106.2,2.95111549]
[1769905119498,2.80595931,106.27,106.2,2.95111549]
[1769905120009,2.80595931,106.27,106.19,32.95978904]
[1769905120010,2.80595931,106.26,106.19,9.41708258]
[1769905120920,2.80595931,106.26,106.19,12.36819807]
[1769905121495,13.71327085,106.27,106.19,12.36819807]
[1769905121496,2.80595931,106.24,106.19,12.36819807]
[1769905122419,2.80595931,106.24,106.17,2.97655776]
[1769905122605,3.06007853,106.23,106.16,12.3958003]
[1769905122801,3.06007853,106.23,106.17,12.39537503]
[1769905123520,3.06007853,106.21,106.17,12.39537503]
[1769905124619,3.06007853,106.21,106.17,2.97655776]
[1769905125523,3.06007853,106.19,106.15,12.39687794]
[1769905126019,3.06007853,106.19,106.14,2.97655776]
[1769905126225,3.06007853,106.19,106.14,12.39771838]
[1769905126804,3.06007853,106.19,106.14,9.42116062]
[1769905127015,3.06007853,106.19,106.13,12.39856514]
[1769905127413,9.41796948,106.18,106.13,12.39856514]
[1769905127699,3.06007853,106.17,106.13,12.39856514]
[1769905128110,3.06007853,106.17,106.11,2.97655776]
[1769905128411,3.06007853,106.17,106.11,9.42379703]
[1769905128611,3.06007853,106.17,106.1,12.40125871]
[1769905129521,3.06007853,106.15,106.09,12.40232662]
[1769905129923,3.06007853,106.15,106.09,2.97655776]
[1769905130728,3.06007853,106.15,106.09,12.40231926]
[1769905131714,3.06007853,106.13,106.09,12.40231926]
[1769905133128,4.27527085,106.16,106.1,2.97655776]
[1769905133331,3.06007853,106.22,106.12,4.27527085]
[1769905133521,3.06007853,106.22,106.13,2.0698817]
[1769905134321,3.06007853,106.2,106.14,11.49037264]
[1769905135424,3.06007853,106.19,106.14,11.49037264]
[1769905135630,3.06007853,106.19,106.14,35.04416951]
[1769905139133,3.06007853,106.19,106.14,23.55379687]
[1769905140136,12.4747041,106.22,106.15,2.06390528]
[1769905140315,12.4747041,106.22,106.14,23.55379687]
[1769905140316,3.06007853,106.24,106.16,2.06390528]
[1769905140926,3.06007853,106.26,106.16,2.06390528]
[1769905141229,3.06007853,106.26,106.19,2.06343643]
[1769905142445,3.06007853,106.26,106.21,11.19252419]
[1769905143242,3.06007853,106.26,106.23,9.41353666]
[1769905143440,3.06007853,106.29,106.23,20.6056027]
[1769905143745,3.06007853,106.29,106.23,11.47605147]
[1769905144443,3.06007853,106.29,106.23,35.00989313]
[1769905144947,3.06007853,106.28,106.23,35.00989313]
[1769905145548,3.06007853,106.29,106.25,2.06161424]
[1769905145744,12.46724734,106.31,106.25,2.06161424]
[1769905145927,3.06007853,106.31,106.25,11.19116547]
[1769905146134,3.06007853,106.31,106.26,2.06161424]
[1769905146427,3.06007853,106.31,106.27,9.40999341]
[1769905146952,3.06007853,106.3,106.27,9.40999341]
[1769905147753,12.46006003,106.31,106.27,9.40999341]
[1769905147927,3.05343766,106.3,106.24,2.06030181]
[1769905148129,3.05343766,106.3,106.25,9.41161091]
[1769905148542,3.05343766,106.28,106.22,11.18942557]
[1769905148746,3.05343766,106.28,106.22,2.05987434]
[1769905148943,3.05343766,106.28,106.24,9.41250744]
[1769905149138,3.05343766,106.28,106.22,2.05987434]
[1769905149445,3.05343766,106.25,106.19,9.41674716]
[1769905149830,3.05343766,106.25,106.2,9.41599626]
[1769905150441,3.05343766,106.25,106.18,25.60292704]
[1769905150442,3.05343766,106.25,106.19,9.41669022]
[1769905150638,3.05343766,106.25,106.19,2.05903408]
[1769905151435,3.05343766,106.27,106.2,2.05862118]
[1769905151845,3.05343766,106.26,106.2,2.05862118]
[1769905152040,3.05343766,106.26,106.21,2.05862118]
[1769905152434,3.05343766,106.28,106.22,2.05821301]
[1769905152635,3.05343766,106.28,106.24,2.05821301]
[1769905153245,3.05343766,106.27,106.23,9.41353666]
[1769905154839,3.05343766,106.26,106.2,2.0574107]
[1769905155249,3.05343766,106.26,106.21,9.41477898]
[1769905155552,3.05343766,106.26,106.2,2.0574107]
[1769905155553,3.05343766,106.26,106.22,9.4143204]
[1769905155940,3.05343766,106.28,106.22,11.47133684]
[1769905156249,12.46115814,106.3,106.23,2.05662671]
[1769905156431,3.05343766,106.29,106.23,2.05662671]
[1769905156637,9.40772048,106.3,106.24,2.05662671]
[1769905156856,3.05343766,106.29,106.25,9.4117647]
[1769905159667,3.05343766,106.31,106.26,2.05548417]
[1769905160850,3.05343766,106.31,106.27,9.40999341]
[1769905161056,3.05343766,106.31,106.27,32.93497694]
[1769905161359,3.05343766,106.31,106.27,9.40999341]
[1769905161552,3.05343766,106.31,106.23,2.05474418]
[1769905161553,3.05343766,106.3,106.23,2.05474418]
[1769905161754,3.05343766,106.3,106.24,9.41209463]
[1769905162542,3.05343766,106.3,106.25,9.4115849]
[1769905162747,3.05343766,106.29,106.25,9.4115849]
[1769905163967,3.05343766,106.28,106.22,9.41395797]
[1769905164144,3.05343766,106.28,106.21,9.41490858]
[1769905164541,3.05343766,106.28,106.2,2.05402109]
[1769905164542,3.05343766,106.27,106.19,9.41656691]
[1769905164944,12.46106445,106.3,106.24,9.41254883]
[1769905165163,12.46106445,106.3,106.22,9.13168656]
[1769905165570,23.61228459,106.33,106.23,9.13168656]
[1769905165881,3.0767262,106.31,106.24,9.13168656]
[1769905166565,3.0767262,106.31,106.25,9.13168656]
[1769905167071,3.0767262,106.31,106.24,23.5316265]
[1769905167278,3.0767262,106.31,106.26,9.13168656]
[1769905167461,3.1767262,106.33,106.27,9.13168656]
[1769905167659,3.1767262,106.33,106.28,9.13168656]
[1769905167971,0.1,106.33,106.29,9.40822278]
[1769905168755,3.0767262,106.32,106.29,9.40822278]
[1769905168961,3.0767262,106.32,106.28,9.40874728]
[1769905169259,3.1767262,106.33,106.28,42.06320388]
[1769905169878,3.1767262,106.33,106.28,32.93151732]
[1769905170375,3.1767262,106.33,106.28,9.40874728]
[1769905170573,3.0767262,106.32,106.25,9.41121935]
[1769905171374,3.0767262,106.32,106.26,9.41063906]
[1769905171573,3.0767262,106.32,106.27,9.40998416]
[1769905172277,3.0767262,106.31,106.27,9.40998416]
[1769905173160,3.1767262,106.33,106.28,0.02098179]
[1769905173770,12.5817396,106.33,106.27,42.08763604]
[1769905173977,3.0767262,106.32,106.27,42.08763604]
[1769905174283,3.0767262,106.32,106.27,32.95594948]
[1769905174464,3.0767262,106.31,106.26,9.41061179]
[1769905174857,3.0767262,106.31,106.27,9.40989822]
[1769905175476,3.0767262,106.3,106.21,23.56895647]
[1769905175976,9.40822278,106.29,106.21,32.98426576]
[1769905176162,3.0767262,106.28,106.21,42.11595232]
[1769905176662,3.0767262,106.28,106.22,0.03733017]
[1769905176869,3.0767262,106.28,106.23,0.03733017]
[1769905177055,3.0767262,106.3,106.25,0.04265492]
[1769905177657,3.0767262,106.3,106.24,9.13168656]
[1769905178072,3.0767262,106.3,106.25,9.4117647]
[1769905178266,3.0767262,106.3,106.25,42.07286302]
[1769905178472,3.09805366,106.32,106.26,9.13168656]
[1769905179659,3.09805366,106.31,106.25,32.66109832]
[1769905179978,3.09805366,106.31,106.25,23.52941176]
[1769905180173,3.09805366,106.31,106.25,23.55010617]